fUST/lending_fUST_20240528
["ID","MTS","AMOUNT","RATE_DAILY","PERIOD"]
[328066557,1716833439884,-1098.31555755,0.00020469,2]
[328066558,1716833439893,-757.864429,0.00020471,2]
[328066559,1716833439905,-379.63313925,0.00020471,2]
[328066560,1716833439914,-619.7785415,0.00020913,2]
[328066561,1716833439924,-6774.65179859,0.00020913,2]
[328066567,1716833442069,-41757.52369838,0.00020913,2]
[328066639,1716833444328,-304.132991,0.00020913,2]
[328067050,1716834389019,1098.31555755,0.00015,2]
[328067549,1716834638002,-150.0,0.000189,2]
[328067551,1716834638012,-1100.7266076,0.00019047,2]
[328067554,1716834638024,-3528.00822366,0.00019047,2]
[328067556,1716834638035,-448.33505799,0.00019047,2]
[328067558,1716834638045,-1098.31555755,0.00019048,2]
[328067560,1716834638054,-1290.1744334,0.00019049,2]
[328067562,1716834638064,-151.0,0.00019161,3]
[328067564,1716834638073,-151.0,0.00019161,2]
[328067566,1716834638082,-260.0,0.0002,2]
[328067568,1716834638091,-323.0,0.0002,2]
[328067570,1716834638101,-144.07495106,0.0002,2]
[328067572,1716834638113,-10.86307373,0.0002,2]
[328067574,1716834638122,-151.0,0.00020289,3]
[328067576,1716834638131,-1137.49756825,0.00020539,2]
[328067578,1716834638141,-4292.61230591,0.00020781,2]
[328067580,1716834638151,-14309.59658166,0.00020913,2]
[328067876,1716834643222,-15595.02074257,0.00020913,2]
[328067883,1716834643514,-1134.342098,0.00020913,2]
[328068059,1716834647032,-124.7320898,0.00020913,2]
[328068062,1716834647043,-137.0779102,0.0002101,2]
[328068064,1716834647055,-282.5,0.0002101,2]
[328070860,1716835479664,1098.31555755,0.00015,2]
[328070861,1716835592168,-151.0,0.00020355,3]
[328070862,1716835592191,-1098.31555755,0.00020469,2]
[328070863,1716835592216,-5077.06988925,0.0002047,2]
[328070864,1716835592239,-1137.49756825,0.00020471,2]
[328070865,1716835592264,-1707.1713994,0.00020781,2]
[328070866,1716835634113,-10464.45932638,0.0002078,2]
[328070867,1716835634135,-8871.5979346,0.00020781,2]
[328070868,1716835634155,-5077.06988925,0.00020913,2]
[328070869,1716835634176,-1097.71798509,0.00020913,2]
[328070870,1716835634196,-676.875,0.00024384,2]
[328070871,1716835634217,-1842.78389165,0.00025,2]
[328070872,1716835634236,-7460.15326995,0.00025,2]
[328070873,1716835634257,-908.77958766,0.000259,2]
[328070874,1716835634277,-921.9413628,0.0002593,2]
[328070875,1716835634296,-4519.46086386,0.00026,2]
[328070876,1716835634316,-11167.06625316,0.00026,2]
[328070877,1716835634338,-620.00220472,0.00026166,2]
[328070878,1716835634360,-677.78418595,0.00026206,2]
[328070879,1716835634382,-677.78418595,0.00026305,2]
[328070880,1716835634402,-2116.06612271,0.0002649,7]
[328070881,1716835634422,-7458.94652043,0.0002649,2]
[328070882,1716835634442,-1014.62056421,0.00026549,2]
[328070883,1716835634462,-2046.5589487,0.000266,2]
[328070884,1716835634483,-677.78418595,0.00026661,2]
[328070885,1716835634503,-161.19769319,0.00026736,2]
[328070886,1716835634523,-1014.62056421,0.00026888,2]
[328070887,1716835634544,-677.78418595,0.00026903,2]
[328070888,1716835634564,-1000.0,0.00027,7]
[328070889,1716835634586,-154.42348508,0.00027011,2]
[328070890,1716835634606,-178.53,0.00027142,3]
[328070891,1716835634627,-677.78418595,0.00027152,2]
[328070892,1716835634648,-677.78418595,0.00027184,2]
[328070893,1716835634668,-535.6,0.00027255,3]
[328070894,1716835634689,-22152.77,0.00027255,3]
[328070895,1716835634712,-265.61937493,0.00027264,2]
[328070896,1716835634732,-151.0,0.00027265,2]
[328070897,1716835634753,-151.0,0.00027265,2]
[328070898,1716835634774,-286.79786,0.00027265,2]
[328070899,1716835634794,-286.79786,0.00027265,2]
[328070900,1716835634818,-20719.65591172,0.00027265,3]
[328070901,1716835646121,-542.22734876,0.00026153,2]
[328070902,1716835646144,-542.22734876,0.00026504,2]
[328070903,1716835646166,-542.22734876,0.00026863,2]
[328070904,1716835646189,-542.22734876,0.00026982,2]
[328070905,1716835646211,-542.22734876,0.00026986,2]
[328070906,1716835646236,-542.22734876,0.00027048,2]
[328070907,1716835646259,-151.0,0.00027266,2]
[328070908,1716835646280,-524.216389,0.00027266,2]
[328070909,1716835646302,-524.216389,0.00027266,2]
[328070910,1716835646323,-151.0,0.00027266,2]
[328070911,1716835646345,-151.0,0.00027266,2]
[328070912,1716835646366,-151.0,0.00027266,2]
[328070913,1716835646386,-965.658223,0.00027266,2]
[328070914,1716835646408,-965.658223,0.00027266,2]
[328070915,1716835646429,-965.658223,0.00027266,2]
[328070916,1716835646451,-965.658223,0.00027266,2]
[328070917,1716835646473,-151.0,0.00027275,2]
[328070918,1716835646496,-524.216389,0.00027275,2]
[328070919,1716835646518,-524.216389,0.00027275,2]
[328070920,1716835646540,-286.79786,0.00027275,2]
[328070921,1716835646561,-286.79786,0.00027275,2]
[328070922,1716835646582,-151.0,0.00027276,2]
[328070923,1716835646605,-524.216389,0.00027276,2]
[328070924,1716835646626,-524.216389,0.00027276,2]
[328070925,1716835646647,-965.658223,0.00027276,2]
[328070926,1716835646668,-965.658223,0.00027276,2]
[328070927,1716835646689,-5063.90579131,0.00027284,2]
[328070928,1716835646710,-28027.41806331,0.00027285,2]
[328070929,1716835646730,-151.0,0.00027285,2]
[328070930,1716835646750,-151.0,0.00027285,2]
[328070931,1716835646772,-151.0,0.00027285,2]
[328070932,1716835646793,-151.0,0.00027285,2]
[328070933,1716835646819,-151.0,0.00027285,2]
[328070934,1716835646842,-524.216389,0.00027285,2]
[328070935,1716835646863,-524.216389,0.00027285,2]
[328070936,1716835646883,-965.658223,0.00027285,2]
[328070937,1716835646904,-965.658223,0.00027285,2]
[328070938,1716835646926,-286.79786,0.00027285,2]
[328070939,1716835646948,-286.79786,0.00027285,2]
[328070940,1716835646967,-6806.33518955,0.00027286,2]
[328070941,1716835646988,-151.0,0.00027286,2]
[328070942,1716835647013,-151.0,0.00027286,2]
[328070943,1716835647035,-269.80094,0.00027286,2]
[328070944,1716835647056,-524.216389,0.00027286,2]
[328070945,1716835647078,-524.216389,0.00027286,2]
[328070946,1716835647100,-965.658223,0.00027286,2]
[328070947,1716835647120,-965.658223,0.00027286,2]
[328070948,1716835647140,-965.658223,0.00027286,2]
[328070949,1716835647164,-965.658223,0.00027286,2]
[328070950,1716835647186,-286.79786,0.00027286,2]
[328070951,1716835647206,-286.79786,0.00027286,2]
[328070952,1716835647227,-286.79786,0.00027286,2]
[328070953,1716835647249,-286.79786,0.00027286,2]
[328070954,1716835647271,-151.0,0.00027287,2]
[328070955,1716835647292,-151.0,0.00027287,2]
[328070956,1716835647313,-151.0,0.00027287,2]
[328070957,1716835647333,-524.216389,0.00027287,2]
[328070958,1716835647356,-524.216389,0.00027287,2]
[328070959,1716835647375,-943.54638398,0.00027295,2]
[328070960,1716835647395,-309.50450791,0.00027295,2]
[328070961,1716835647414,-1569.4348472,0.00027296,2]
[328070962,1716835647435,-5307.8474464,0.00027297,3]
[328070963,1716835647457,-2000.0,0.00027297,2]
[328070964,1716835647478,-456.717891,0.00027297,2]
[328070965,1716835647497,-761.26183516,0.00027297,2]
[328070966,1716835647518,-151.0,0.00027297,2]
[328070967,1716835647538,-151.0,0.00027297,2]
[328070968,1716835647560,-524.216389,0.00027297,2]
[328070969,1716835647583,-524.216389,0.00027297,2]
[328070970,1716835647608,-965.658223,0.00027297,2]
[328070971,1716835647631,-965.658223,0.00027297,2]
[328070972,1716835647652,-286.79786,0.00027297,2]
[328070973,1716835647674,-286.79786,0.00027297,2]
[328070974,1716835647694,-282.0,0.000273,2]
[328070975,1716835647714,-561.99755291,0.00027375,7]
[328070976,1716835647735,-155.28746129,0.00027385,2]
[328070977,1716835647755,-190.10124897,0.00027386,2]
[328070978,1716835647775,-274.71288917,0.00027386,2]
[328070979,1716835647796,-195.15346613,0.00027394,2]
[328070980,1716835647817,-286.79786,0.00027394,2]
[328070981,1716835647839,-286.79786,0.00027394,2]
[328070982,1716835647863,-1749.13029001,0.00027396,7]
[328070983,1716835647884,-200.5510001,0.00027396,2]
[328070984,1716835647903,-2678.94239421,0.00027396,2]
[328070985,1716835647924,-3353.3271835,0.00027396,2]
[328070986,1716835647944,-151.0,0.00027396,2]
[328070987,1716835647968,-524.216389,0.00027396,2]
[328070988,1716835647990,-524.216389,0.00027396,2]
[328070989,1716835648014,-965.658223,0.00027396,2]
[328070990,1716835648035,-965.658223,0.00027396,2]
[328070991,1716835648054,-160.80712366,0.00027397,2]
[328070992,1716835648075,-3633.92034182,0.00027397,2]
[328070993,1716835648098,-300.0,0.00027397,4]
[328070994,1716835648118,-500.0,0.00027397,4]
[328070995,1716835648141,-500.0,0.00027397,4]
[328070996,1716835648166,-1307.9,0.00027397,4]
[328070997,1716835648188,-1013.27,0.00027397,4]
[328070998,1716835648208,-500.0,0.00027397,4]
[328070999,1716835648228,-500.0,0.00027397,4]
[328071000,1716835648249,-500.0,0.00027397,4]
[328071001,1716835648270,-500.0,0.00027397,4]
[328071002,1716835648290,-500.0,0.00027397,4]
[328071003,1716835648310,-500.0,0.00027397,4]
[328071004,1716835648330,-500.0,0.00027397,4]
[328071005,1716835648352,-500.0,0.00027397,4]
[328071006,1716835648372,-500.0,0.00027397,4]
[328071007,1716835648393,-1669.41,0.00027397,2]
[328071008,1716835648413,-772.52826239,0.00027397,2]
[328071009,1716835648434,-522.36,0.00027397,4]
[328071010,1716835648454,-500.0,0.00027397,4]
[328071011,1716835648475,-500.0,0.00027397,4]
[328071012,1716835648496,-500.0,0.00027397,4]
[328071013,1716835648517,-500.0,0.00027397,4]
[328071014,1716835648537,-500.0,0.00027397,4]
[328071015,1716835648558,-500.0,0.00027397,4]
[328071016,1716835648578,-504.88,0.00027397,4]
[328071017,1716835648599,-500.0,0.00027397,4]
[328071018,1716835648619,-500.0,0.00027397,4]
[328071019,1716835648639,-500.0,0.00027397,4]
[328071020,1716835648659,-500.0,0.00027397,4]
[328071021,1716835648680,-500.0,0.00027397,4]
[328071022,1716835648700,-563.91107028,0.00027397,4]
[328071023,1716835648720,-519.51934935,0.00027397,4]
[328071024,1716835648741,-500.0,0.00027397,4]
[328071025,1716835648763,-500.0,0.00027397,4]
[328071026,1716835648785,-500.0,0.00027397,4]
[328071027,1716835648806,-500.0,0.00027397,4]
[328071028,1716835648826,-500.0,0.00027397,4]
[328071029,1716835648847,-500.0,0.00027397,4]
[328071030,1716835648868,-500.0,0.00027397,4]
[328071031,1716835648889,-500.0,0.00027397,4]
[328071032,1716835648909,-500.0,0.00027397,4]
[328071033,1716835648929,-782.03,0.00027397,4]
[328071034,1716835648950,-500.0,0.00027397,4]
[328071035,1716835648969,-500.0,0.00027397,4]
[328071036,1716835648991,-500.0,0.00027397,4]
[328071037,1716835649015,-624.13,0.00027397,4]
[328071038,1716835649035,-500.0,0.00027397,4]
[328071039,1716835649057,-500.0,0.00027397,4]
[328071040,1716835649078,-184.401325,0.00027397,2]
[328071041,1716835649103,-500.0,0.00027397,4]
[328071042,1716835649122,-500.0,0.00027397,4]
[328071043,1716835649142,-517.1326475,0.00027397,4]
[328071044,1716835649163,-797.79,0.00027397,4]
[328071045,1716835649182,-500.0,0.00027397,4]
[328071046,1716835649202,-500.0,0.00027397,4]
[328071047,1716835649222,-500.0,0.00027397,4]
[328071048,1716835649403,-535.58,0.00027397,4]
[328071049,1716835649425,-500.0,0.00027397,4]
[328071050,1716835649446,-500.0,0.00027397,4]
[328071051,1716835649468,-500.0,0.00027397,4]
[328071052,1716835649490,-500.0,0.00027397,4]
[328071053,1716835649511,-506.73,0.00027397,4]
[328071054,1716835649532,-500.0,0.00027397,4]
[328071055,1716835649555,-810.86,0.00027397,4]
[328071056,1716835649575,-546.61,0.00027397,4]
[328071057,1716835649598,-500.0,0.00027397,4]
[328071058,1716835649617,-1873.61,0.00027397,4]
[328071059,1716835649638,-500.0,0.00027397,4]
[328071060,1716835649660,-500.0,0.00027397,4]
[328071061,1716835649682,-500.0,0.00027397,4]
[328071062,1716835649704,-1621.97,0.00027397,4]
[328071063,1716835649725,-588.86007862,0.00027397,4]
[328071064,1716835649747,-330.91236282,0.00027397,4]
[328071065,1716835649767,-656.31,0.00027397,4]
[328071066,1716835649787,-500.0,0.00027397,4]
[328071067,1716835649807,-1728.54,0.00027397,4]
[328071068,1716835649828,-500.0,0.00027397,4]
[328071069,1716835649850,-417.48592577,0.00027397,4]
[328071070,1716835649870,-500.0,0.00027397,4]
[328071071,1716835649891,-500.0,0.00027397,4]
[328071072,1716835649913,-500.0,0.00027397,4]
[328071073,1716835649934,-500.0,0.00027397,4]
[328071074,1716835649955,-584.75,0.00027397,4]
[328071075,1716835649976,-500.0,0.00027397,4]
[328071076,1716835649996,-622.08,0.00027397,4]
[328071077,1716835650020,-500.0,0.00027397,4]
[328071078,1716835650040,-500.0,0.00027397,4]
[328071079,1716835650064,-500.0,0.00027397,4]
[328071080,1716835650087,-244.0095321,0.00027397,4]
[328071081,1716835650109,-500.0,0.00027397,4]
[328071082,1716835650130,-500.0,0.00027397,4]
[328071083,1716835650152,-713.29,0.00027397,4]
[328071084,1716835650174,-574.35,0.00027397,4]
[328071085,1716835650195,-500.0,0.00027397,4]
[328071086,1716835650215,-500.0,0.00027397,4]
[328071087,1716835650236,-1355.75,0.00027397,4]
[328071088,1716835650256,-500.0,0.00027397,4]
[328071089,1716835650276,-597.44,0.00027397,4]
[328071090,1716835650297,-500.0,0.00027397,4]
[328071091,1716835650318,-612.13,0.00027397,4]
[328071092,1716835650338,-500.0,0.00027397,4]
[328071093,1716835650360,-500.0,0.00027397,4]
[328071094,1716835650381,-682.4,0.00027397,4]
[328071095,1716835650403,-524.216389,0.00027397,2]
[328071096,1716835650424,-524.216389,0.00027397,2]
[328071097,1716835650446,-524.216389,0.00027397,2]
[328071098,1716835650468,-524.21639111,0.00027397,2]
[328071099,1716835650490,-500.0,0.00027397,4]
[328071100,1716835650510,-500.0,0.00027397,4]
[328071101,1716835650530,-508.98,0.00027397,4]
[328071102,1716835650550,-500.0,0.00027397,4]
[328071103,1716835650570,-760.21,0.00027397,2]
[328071104,1716835650589,-500.0,0.00027397,4]
[328071105,1716835650611,-500.0,0.00027397,4]
[328071106,1716835650632,-1291.59,0.00027397,4]
[328071107,1716835650652,-500.0,0.00027397,4]
[328071108,1716835650672,-500.0,0.00027397,4]
[328071109,1716835650694,-500.0,0.00027397,4]
[328071110,1716835650715,-1048.67,0.00027397,4]
[328071111,1716835650735,-500.0,0.00027397,4]
[328071112,1716835650756,-500.0,0.00027397,4]
[328071113,1716835650777,-500.0,0.00027397,4]
[328071114,1716835650798,-965.658223,0.00027397,2]
[328071115,1716835650820,-965.658223,0.00027397,2]
[328071116,1716835650844,-500.0,0.00027397,4]
[328071117,1716835650866,-837.5,0.00027397,4]
[328071118,1716835650890,-965.658223,0.00027397,2]
[328071119,1716835650911,-965.658225,0.00027397,2]
[328071120,1716835650931,-500.0,0.00027397,4]
[328071121,1716835650951,-693.28,0.00027397,4]
[328071122,1716835650971,-504.8129884,0.00027397,4]
[328071123,1716835651001,-500.0,0.00027397,4]
[328071124,1716835651026,-250.0,0.00027397,4]
[328071125,1716835651054,-918.28,0.00027397,4]
[328071126,1716835651075,-1577.2,0.00027397,4]
[328071127,1716835651102,-500.0,0.00027397,4]
[328071128,1716835651122,-500.0,0.00027397,4]
[328071129,1716835651144,-8416.31,0.00027397,4]
[328071130,1716835651164,-500.0,0.00027397,4]
[328071131,1716835651185,-500.0,0.00027397,4]
[328071132,1716835651206,-721.95,0.00027397,4]
[328071133,1716835651226,-500.0,0.00027397,4]
[328071134,1716835651250,-500.0,0.00027397,4]
[328071135,1716835651271,-500.0,0.00027397,4]
[328071136,1716835651292,-500.0,0.00027397,4]
[328071137,1716835651314,-718.43,0.00027397,4]
[328071138,1716835651334,-500.0,0.00027397,4]
[328071139,1716835651357,-2295.0,0.00027397,4]
[328071140,1716835651378,-608.3,0.00027397,4]
[328071141,1716835651398,-500.0,0.00027397,4]
[328071142,1716835651418,-1980.71,0.00027397,4]
[328071143,1716835651438,-1954.04,0.00027397,4]
[328071144,1716835651458,-500.0,0.00027397,4]
[328071145,1716835651479,-500.0,0.00027397,4]
[328071146,1716835651500,-500.0,0.00027397,4]
[328071147,1716835651519,-500.0,0.00027397,4]
[328071148,1716835651539,-500.0,0.00027397,4]
[328071149,1716835651559,-626.11,0.00027397,4]
[328071150,1716835651580,-500.0,0.00027397,4]
[328071151,1716835651601,-500.0,0.00027397,4]
[328071152,1716835651622,-500.0,0.00027397,4]
[328071153,1716835651644,-500.0,0.00027397,4]
[328071154,1716835651665,-500.0,0.00027397,4]
[328071155,1716835651691,-4523.98,0.00027397,4]
[328071156,1716835651711,-747.62,0.00027397,4]
[328071157,1716835651732,-1009.91,0.00027397,4]
[328071158,1716835651753,-500.0,0.00027397,4]
[328071159,1716835651775,-500.0,0.00027397,4]
[328071160,1716835651795,-609.48,0.00027397,4]
[328071161,1716835651817,-500.0,0.00027397,4]
[328071162,1716835651840,-500.0,0.00027397,4]
[328071163,1716835651862,-500.0,0.00027397,4]
[328071164,1716835651884,-500.0,0.00027397,4]
[328071165,1716835651906,-500.0,0.00027397,4]
[328071166,1716835651931,-500.0,0.00027397,4]
[328071167,1716835651954,-3396.99,0.00027397,4]
[328071168,1716835651976,-500.0,0.00027397,4]
[328071169,1716835652001,-500.0,0.00027397,4]
[328071170,1716835652026,-327.97763544,0.00027397,4]
[328071171,1716835652050,-500.0,0.00027397,4]
[328071172,1716835652075,-710.21,0.00027397,4]
[328071173,1716835652099,-500.0,0.00027397,4]
[328071174,1716835652120,-500.0,0.00027397,4]
[328071175,1716835652139,-500.0,0.00027397,4]
[328071176,1716835652159,-500.0,0.00027397,4]
[328071178,1716835652180,-541.35,0.00027397,4]
[328071180,1716835652201,-500.0,0.00027397,4]
[328071181,1716835652223,-500.0,0.00027397,4]
[328071182,1716835652244,-1214.18,0.00027397,4]
[328071183,1716835652264,-1573.86,0.00027397,4]
[328071184,1716835652285,-4942.18,0.00027397,4]
[328071185,1716835652306,-500.0,0.00027397,4]
[328071186,1716835652326,-500.0,0.00027397,4]
[328071187,1716835652347,-500.0,0.00027397,4]
[328071188,1716835652367,-1777.87,0.00027397,4]
[328071189,1716835652388,-500.0,0.00027397,4]
[328071190,1716835652409,-1462.29,0.00027397,4]
[328071191,1716835652430,-653.62,0.00027397,4]
[328071192,1716835652450,-500.0,0.00027397,4]
[328071193,1716835652470,-675.46,0.00027397,4]
[328071194,1716835652491,-500.0,0.00027397,4]
[328071195,1716835652511,-630.38,0.00027397,4]
[328071196,1716835652532,-500.0,0.00027397,4]
[328071197,1716835652552,-567.71,0.00027397,4]
[328071198,1716835652573,-500.0,0.00027397,4]
[328071199,1716835652597,-3819.37,0.00027397,4]
[328071200,1716835652617,-500.0,0.00027397,4]
[328071201,1716835652638,-286.79786,0.00027397,2]
[328071202,1716835652658,-1775.03,0.00027397,4]
[328071203,1716835652679,-286.79786,0.00027397,2]
[328071204,1716835652702,-286.79786,0.00027397,2]
[328071205,1716835652724,-286.79786,0.00027397,2]
[328071206,1716835652746,-286.79786,0.00027397,2]
[328071207,1716835652768,-500.0,0.00027397,4]
[328071208,1716835652789,-520.2,0.00027397,4]
[328071209,1716835652811,-286.797852,0.00027397,2]
[328071210,1716835652832,-500.0,0.00027397,4]
[328071211,1716835652856,-500.0,0.00027397,4]
[328071212,1716835652877,-500.0,0.00027397,4]
[328071213,1716835652898,-500.0,0.00027397,4]
[328071214,1716835652919,-500.0,0.00027397,4]
[328071215,1716835652941,-500.0,0.00027397,4]
[328071216,1716835652962,-500.0,0.00027397,4]
[328071217,1716835652982,-1847.98,0.00027397,4]
[328071218,1716835653010,-583.45494298,0.00027397,4]
[328071219,1716835653031,-500.0,0.00027397,4]
[328071220,1716835653055,-12058.46,0.00027397,4]
[328071221,1716835653080,-582.23,0.00027397,4]
[328071222,1716835653104,-500.0,0.00027397,4]
[328071223,1716835653126,-808.04,0.00027397,4]
[328071224,1716835653148,-500.0,0.00027397,4]
[328071225,1716835653168,-500.0,0.00027397,4]
[328071226,1716835653189,-2500.98,0.00027397,4]
[328071227,1716835653210,-911.55,0.00027397,4]
[328071228,1716835653376,-500.0,0.00027397,4]
[328071229,1716835653398,-500.0,0.00027397,4]
[328071230,1716835653419,-500.0,0.00027397,4]
[328071231,1716835653440,-14756.91,0.00027397,4]
[328071232,1716835653462,-531.83,0.00027397,4]
[328071233,1716835653483,-500.0,0.00027397,4]
[328071234,1716835653504,-643.5,0.00027397,4]
[328071235,1716835653526,-500.0,0.00027397,2]
[328071236,1716835653548,-500.0,0.00027397,4]
[328071237,1716835653571,-8356.87,0.00027397,4]
[328071238,1716835653591,-500.0,0.00027397,4]
[328071239,1716835653615,-500.0,0.00027397,4]
[328071240,1716835653636,-527.67,0.00027397,4]
[328071241,1716835653658,-1589.01,0.00027397,4]
[328071242,1716835653687,-1535.63,0.00027397,4]
[328071243,1716835653723,-500.0,0.00027397,4]
[328071244,1716835653744,-183.0953654,0.00027397,4]
[328071245,1716835653766,-500.0,0.00027397,4]
[328071246,1716835653787,-557.14,0.00027397,4]
[328071247,1716835653808,-475.06282669,0.00027397,4]
[328071248,1716835653830,-500.0,0.00027397,4]
[328071249,1716835653853,-500.0,0.00027397,4]
[328071250,1716835653874,-500.0,0.00027397,4]
[328071251,1716835653895,-500.0,0.00027397,2]
[328071252,1716835653917,-581.83,0.00027397,4]
[328071253,1716835653937,-500.0,0.00027397,2]
[328071254,1716835653960,-500.0,0.00027397,2]
[328071255,1716835653980,-500.0,0.00027397,2]
[328071256,1716835654004,-296.564461,0.00027397,2]
[328071257,1716835654024,-500.0,0.00027397,2]
[328071258,1716835654046,-500.0,0.00027397,2]
[328071259,1716835654068,-500.0,0.00027397,2]
[328071260,1716835654091,-500.0,0.00027397,4]
[328071261,1716835654115,-500.0,0.00027397,4]
[328071262,1716835654135,-500.0,0.00027397,4]
[328071263,1716835654157,-490.34820793,0.00027397,4]
[328071264,1716835654180,-1051.65,0.00027397,4]
[328071265,1716835654201,-500.0,0.00027397,4]
[328071266,1716835654223,-500.0,0.00027397,4]
[328071267,1716835654246,-744.01,0.00027397,4]
[328071268,1716835654275,-500.0,0.00027397,4]
[328071269,1716835654298,-511.20795978,0.00027397,4]
[328071270,1716835654320,-500.0,0.00027397,4]
[328071271,1716835654342,-1863.4,0.00027397,4]
[328071272,1716835654366,-500.0,0.00027397,4]
[328071273,1716835654387,-500.0,0.00027397,4]
[328071274,1716835654409,-717.23,0.00027397,4]
[328071275,1716835654431,-500.0,0.00027397,4]
[328071276,1716835654453,-2081.1,0.00027397,4]
[328071277,1716835654476,-500.0,0.00027397,4]
[328071278,1716835654498,-500.0,0.00027397,4]
[328071279,1716835654520,-500.0,0.00027397,4]
[328071280,1716835654543,-500.0,0.00027397,4]
[328071281,1716835654566,-500.0,0.00027397,4]
[328071282,1716835654589,-500.0,0.00027397,4]
[328071283,1716835654615,-500.0,0.00027397,4]
[328071284,1716835654637,-500.0,0.00027397,4]
[328071285,1716835654659,-500.0,0.00027397,4]
[328071286,1716835654681,-671.06,0.00027397,4]
[328071287,1716835654703,-1770.11,0.00027397,4]
[328071288,1716835654726,-500.0,0.00027397,4]
[328071289,1716835654747,-500.0,0.00027397,4]
[328071290,1716835654770,-871.28,0.00027397,4]
[328071291,1716835654792,-508.52,0.00027397,4]
[328071292,1716835654813,-152.224301,0.00027397,2]
[328071293,1716835654834,-620.00011024,0.00027474,2]
[328071294,1716835654856,-300.0,0.00027671,4]
[328071295,1716835654877,-500.0,0.00027671,4]
[328071296,1716835654898,-500.0,0.00027671,4]
[328071297,1716835654919,-1307.9,0.00027671,4]
[328071298,1716835654940,-1013.27,0.00027671,4]
[328071299,1716835654961,-500.0,0.00027671,4]
[328071300,1716835654983,-500.0,0.00027671,4]
[328071301,1716835655010,-500.0,0.00027671,4]
[328071302,1716835655030,-500.0,0.00027671,4]
[328071303,1716835655052,-500.0,0.00027671,4]
[328071304,1716835655075,-500.0,0.00027671,4]
[328071305,1716835655098,-500.0,0.00027671,4]
[328071306,1716835655119,-500.0,0.00027671,4]
[328071307,1716835655139,-500.0,0.00027671,4]
[328071308,1716835655160,-1669.41,0.00027671,2]
[328071309,1716835655181,-522.36,0.00027671,4]
[328071310,1716835655203,-500.0,0.00027671,4]
[328071311,1716835655225,-286.04148146,0.00027671,4]
[328071312,1716835655247,-500.0,0.00027671,4]
[328071313,1716835655268,-500.0,0.00027671,4]
[328071314,1716835655290,-500.0,0.00027671,4]
[328071315,1716835655310,-504.88,0.00027671,4]
[328071316,1716835655332,-500.0,0.00027671,4]
[328071317,1716835655355,-500.0,0.00027671,4]
[328071318,1716835655375,-500.0,0.00027671,4]
[328071319,1716835655397,-500.0,0.00027671,4]
[328071320,1716835655418,-500.0,0.00027671,4]
[328071321,1716835655439,-500.0,0.00027671,4]
[328071322,1716835655460,-500.0,0.00027671,4]
[328071323,1716835655481,-500.0,0.00027671,4]
[328071324,1716835655502,-500.0,0.00027671,4]
[328071325,1716835655523,-382.91624959,0.00027671,4]
[328071374,1716835832198,-306.0,0.00026,4]
[328071376,1716835832207,-364.80087435,0.00026021,2]
[328071378,1716835832219,-974.56370931,0.00026021,2]
[328071978,1716835838283,-643.03125,0.00024384,2]
[328071980,1716835838292,-2364.90799503,0.00026021,2]
[328071982,1716835838304,-1372.79731056,0.00026021,2]
[328071984,1716835838313,-946.97919326,0.00026022,2]